Cogmind - Beta 15 X1 @@@ ROGUE MODE // 2024.11.06 @ 22:34:50 Player: Plexion Result: Destroyed by G-67 Veteran with Plasma Rifle Performance ------------- Evolutions (6) 3000 Regions Visited (19) 3800 Robots Destroyed (222) 1110 Value Destroyed (8925) 8925 Prototype IDs (49) 980 Alien Tech Used (0) 0 Bonus (3166) 3166 TOTAL SCORE: 20981 Bonus ------- High Alert Combat Kills 1738 Follower Combat Kills 7207 Entered Garrisons 600 Used RIF Installer 1500 Aligned with FarCom 300 Friendly Fire -8179 Cogmind --------- Core Integrity 0/1150 Matter 300/300 Energy 99/100 System Corruption 4% Temperature Cool (12) Movement Core (50) Location -4/Factory Parts ------- > --- POWER (2) -------- (None) > --- PROPULSION (6) --- (None) > --- UTILITY (9) ------ Experimental Signal Interpreter > --- WEAPON (2) ------- (None) > --- INVENTORY (5) ---- Medium Storage Unit Improved Trap Extractor (5/6 Dirty Bomb) LU-1G1's Laser Shovel CPS Tube (2) Thermal Lance Peak State ------------ > --- POWER ------------ Backup Power III Reinforced Quantum Reactor > --- PROPULSION ------- Medium Treads Centrium Leg Heavy Shield Leg Heavy Shield Leg > --- UTILITY ---------- Advanced Cooling System Advanced Cooling System Huge Storage Unit Machine Analyzer Hardened Medium Armor Plating Improved Thermal Shield Relay Coupler [NC] Relay Coupler [Proto] Tech Extrapolator > --- WEAPON ----------- Nova Cannon Nova Cannon > --- INVENTORY -------- Experimental Sensor Array Experimental Signal Interpreter Advanced Weapon Cycler Hardened Medium Armor Plating Hardened Medium Armor Plating Improved Medium Armor Plating Relay Coupler [Grunt] Relay Coupler [Sentry] Relay Coupler [Behemoth] Relay Coupler [Proto] Relay Coupler [Proto] Relay Coupler [Proto] High-powered Tractor Beam Improved Trap Extractor Nova Cannon Rocket Array Rocket Array Improved Remote Datajack LU-1G1's Laser Shovel CPS Tube Thermal Lance Botcube Botcube Large Botcube [Rating: 134] Favorites ----------- Power Reinforced Deuterium Engine Engine Reinforced Deuterium Engine Power Core Light Nuclear Core Reactor Reinforced Quantum Reactor Propulsion Armored Treads Treads Armored Treads Leg Flexi-carbon Leg Wheel Compact Wheel Flight Unit Impulse Thruster Utility Hardened Medium Armor Plating Device Hardlight Generator Storage Huge Storage Unit Processor Tech Extrapolator Hackware Hacking Suite Protection Hardened Medium Armor Plating Weapon Cooled Pulse Rifle Energy Gun Cooled Pulse Rifle Energy Cannon Nova Cannon Ballistic Gun Autogun Ballistic Cannon Light Cannon Launcher Improved Grenade Launcher Special Weapon CPS Tube Piercing Weapon Makeshift Spear Build | -11 -10 -10 -9 -9 -9 -8 -8 -8 -7 -7 -7 -7 -5 -5 -4 -4 -4 -4 -4 ------- Run | Yrd Mat Min Mat Min Exi Min Mat Gar Fac Sto Rec Scr Fac Gar Fac Was Fac Gar Fac Slots Evolved 12 | . . . 2 . . . 2 . 2 . . . 4 . 2 . . . . Power 1 | . . . . . . . . . . . . . 1 . . . . . . Propulsion 4 | . . . 1 . . . . . . . . . 2 . 1 . . . . Utility 7 | . . . 1 . . . 2 . 2 . . . 1 . 1 . . . . Weapon . | . . . . . . . . . . . . . . . . . . . . Parts Attached 209 | 8 8 4 16 2 . 2 6 10 7 26 9 41 6 5 . 10 2 21 26 Power 16 | 1 . . 1 . . . 1 1 . 2 . 2 1 . . 4 . 2 1 Engine 7 | 1 . . . . . . 1 1 . 1 . . 1 . . 1 . . 1 Core 5 | . . . 1 . . . . . . 1 . 2 . . . . . 1 . Reactor 4 | . . . . . . . . . . . . . . . . 3 . 1 . Propulsion 52 | 2 . 2 6 . . . 1 5 1 8 1 3 1 2 . 4 . 9 7 Treads 27 | 2 . 1 5 . . . 1 5 . 8 . 1 1 2 . 1 . . . Leg 17 | . . . . . . . . . . . . . . . . 3 . 9 5 Wheel 6 | . . 1 . . . . . . 1 . 1 2 . . . . . . 1 Hover . | . . . . . . . . . . . . . . . . . . . . Flight 2 | . . . 1 . . . . . . . . . . . . . . . 1 Utility 81 | 2 4 1 5 1 . . 4 2 3 8 8 14 3 2 . 1 2 7 14 Device 38 | 1 1 1 . 1 . . . . 2 4 5 10 2 1 . 1 2 1 6 Storage 5 | 1 3 . . . . . . . . . . . . . . . . . 1 Processor 6 | . . . . . . . . . . . 1 2 . . . . . . 3 Hackware 8 | . . . . . . . 1 . . . . . . 1 . . . 4 2 Protection 24 | . . . 5 . . . 3 2 1 4 2 2 1 . . . . 2 2 Artifact . | . . . . . . . . . . . . . . . . . . . . Weapon 60 | 3 4 1 4 1 . 2 . 2 3 8 . 22 1 1 . 1 . 3 4 Energy Gun 11 | 3 . . . . . . . . . 6 . 1 . . . 1 . . . Energy Cannon 8 | . . . . . . . . 1 1 . . . . . . . . 3 3 Ballistic Gun 8 | . 2 . 1 . . 2 . . 2 . . 1 . . . . . . . Ballistic Cannon 4 | . 1 1 2 . . . . . . . . . . . . . . . . Launcher 7 | . 1 . 1 1 . . . 1 . 2 . . 1 . . . . . . Special Weapon 19 | . . . . . . . . . . . . 18 . 1 . . . . . Impact Weapon . | . . . . . . . . . . . . . . . . . . . . Slashing Weapon . | . . . . . . . . . . . . . . . . . . . . Piercing Weapon 3 | . . . . . . . . . . . . 2 . . . . . . 1 Special Melee Weapon . | . . . . . . . . . . . . . . . . . . . . Unidentified Prototypes 13 | . . . 2 1 . . . . . 5 . 1 1 . . . . . 3 Corrupted Parts 3 | . . 3 . . . . . . . . . . . . . . . . . System Corruption 14 | . . 14 . . . . . . . . . . . . . . . . . Parts Lost 46 | . 1 . . . . . 1 3 2 7 . . 1 . . . . 7 24 Power 4 | . . . . . . . . 1 . . . . . . . . . 1 2 Propulsion 17 | . . . . . . . . 2 . 2 . . . . . . . 2 11 Utility 19 | . 1 . . . . . 1 . 1 5 . . 1 . . . . 3 7 Weapon 6 | . . . . . . . . . 1 . . . . . . . . 1 4 Highest Loss Streak 9 | . 1 . . . . . 1 2 2 2 . . 1 . . . . 2 9 To Critical Strikes 1 | . . . . . . . . . . 1 . . . . . . . . . Average Backups 19 | 2 9 17 22 25 23 18 17 19 19 19 19 19 17 21 21 21 21 21 19 Power . | . 1 1 1 1 1 1 1 1 1 1 1 . . . . . . . . Propulsion 2 | 1 2 3 7 8 6 4 4 4 4 4 3 1 1 1 . . . . . Utility 9 | . 2 5 6 8 8 9 7 9 9 7 9 9 9 13 14 14 14 12 10 Weapon 5 | . 3 6 7 7 6 4 4 5 5 5 5 5 5 4 5 4 4 5 5 Tool/Special . | . . . . . . . . . . . . . . . . . . . . Unused Backups 163 | . . . 5 . 5 . . 1 . 3 1 86 4 18 . 1 13 14 12 Power 18 | . . . . . . . . . . 2 . 10 2 1 . . 2 . 1 Propulsion 32 | . . . . . 4 . . . . . . 17 . 4 . 1 2 4 . Utility 68 | . . . 2 . . . . 1 . . . 37 1 8 . . 5 7 7 Weapon 40 | . . . 3 . 1 . . . . 1 1 18 1 5 . . 4 3 3 Tool/Special 5 | . . . . . . . . . . . . 4 . . . . . . 1 Average Slot Usage (%) 86 | . 95 100 99 100 77 98 98 99 91 97 96 77 84 90 89 87 89 95 79 Engine 5 | . 14 14 2 . . . . 8 7 6 7 6 2 5 5 4 5 1 1 Core 1 | . . . 8 11 11 11 8 . . . . . 5 5 5 3 . . . Treads 14 | . 28 15 33 33 33 33 27 26 15 17 22 7 17 19 26 15 5 1 . Leg 2 | . . . . . . . . . . . . . . . . 7 15 26 23 Wheel 7 | . . 12 . . . . . . 6 4 . 15 . . . . . . . Device 11 | . 9 14 7 9 . . 8 9 13 18 11 10 16 15 10 11 15 17 13 Storage 7 | . 14 14 11 11 11 11 9 9 7 7 7 7 5 5 5 5 5 5 4 Processor 3 | . . . . . . . . . . . 5 3 11 11 10 10 10 10 11 Hackware 2 | . . . . . . . 8 9 7 7 7 . . 1 5 5 5 3 2 Protection 11 | . . . 14 12 21 22 18 18 16 16 16 10 11 11 10 10 10 8 4 Energy Gun 4 | . 9 . . . . . . . . 11 15 4 10 6 5 6 10 . . Ballistic Gun 2 | . 7 14 . . . 20 18 16 9 2 . . . . . . . . . Ballistic Cannon 2 | . 11 14 20 21 . . . . . . . . . . . . . . . Special Weapon 2 | . . . . . . . . . . . . 4 . 2 5 3 . . . Piercing Weapon 1 | . . . . . . . . . . . . 3 . . . . . . 1 Peak Build Rating 134 | 7 8 13 22 29 24 28 35 36 42 54 56 90 91 97 80 128 128 134 128 Average Rating 55 | 4 7 10 18 21 20 27 32 34 36 46 53 56 85 89 80 104 125 123 99 On Entrance 50 | . 7 8 13 22 22 24 28 35 33 40 51 53 62 90 80 80 122 128 120 Naked Turns . | . . . . . . . . . . . . . . . . . . . . Heaviest Build 183 | 12 89 91 107 107 99 105 110 113 122 131 132 183 136 135 132 152 143 169 168 Greatest Support 168 | 40 40 40 60 60 60 60 60 63 16 63 60 60 92 108 108 168 150 150 140 Greatest Overweight (x) 29 | . 2 5 1 1 1 1 1 1 7 7 8 11 1 1 1 2 . 2 29 Average Overweight (x) 2 | . . 4 1 1 1 1 1 1 6 4 2 4 1 1 1 . . . . Largest Inventory Capacity 25 | 8 25 25 25 25 25 25 25 25 25 25 25 25 25 25 25 25 25 25 25 Average Capacity 24 | 7 11 24 25 25 25 25 25 25 25 25 25 25 25 25 25 25 25 25 22 Most Carried 25 | 5 15 19 25 25 25 24 25 25 25 25 25 25 25 25 23 25 25 25 25 Average Carried 21 | 2 9 18 22 25 24 23 22 24 24 24 24 20 23 24 23 24 25 24 21 Final Capacity 25 | 8 15 25 25 25 25 25 25 25 25 25 25 25 25 25 25 25 25 25 5 Final Carried 25 | 5 14 18 25 25 25 23 25 25 25 25 25 25 24 23 23 25 25 25 5 Class Distribution -------------------- 41% | Mutant 29% | Scavenger-Mutant 16% | Commander-Mutant 12% | Bothacker-Mutant Dominant Class ---------------- Mutant | -10/Materials Mutant | -10/Mines Mutant | -9/Materials Mutant | -9/Mines Mutant | -9/Exiles Mutant | -8/Mines Mutant | -8/Materials Scavenger-Mutant | -8/Garrison Scavenger-Mutant | -7/Factory Scavenger-Mutant | -7/Storage Commander-Mutant | -7/Recycling Mutant | -7/Scraptown Commander-Mutant | -5/Factory Bothacker-Mutant | -5/Garrison Bothacker-Mutant | -4/Factory Bothacker-Mutant | -4/Waste Bothacker-Mutant | -4/Factory Bothacker-Mutant | -4/Garrison Bothacker-Mutant | -4/Factory Resources | -11 -10 -10 -9 -9 -9 -8 -8 -8 -7 -7 -7 -7 -5 -5 -4 -4 -4 -4 -4 ----------- Run | Yrd Mat Min Mat Min Exi Min Mat Gar Fac Sto Rec Scr Fac Gar Fac Was Fac Gar Fac Matter Collected 9380 | 258 260 173 796 176 . . 310 508 223 732 78 4520 75 136 . 277 30 422 406 Remotely 4258 | . . . . . . . . . . . . 4258 . . . . . . . Salvage Created 10457 | 41 279 69 715 133 . . 372 640 223 1735 530 1856 413 31 . 492 202 1133 1593 Parts 560 | 5 26 6 42 9 . . 19 56 16 71 11 157 17 5 . 4 2 51 63 Haulers Intercepted 15 | . 1 . 5 . . . . . . 5 . . 3 . . . . . 1 Recyclers Shooed 5 | . 1 . 2 . . . . . . . . . 1 . . . 1 . . Parts Field Recycled . | . . . . . . . . . . . . . . . . . . . . Retrieved Matter . | . . . . . . . . . . . . . . . . . . . . Parts Self-Destructed . | . . . . . . . . . . . . . . . . . . . . Prevented . | . . . . . . . . . . . . . . . . . . . . Kills | -11 -10 -10 -9 -9 -9 -8 -8 -8 -7 -7 -7 -7 -5 -5 -4 -4 -4 -4 -4 ------- Run | Yrd Mat Min Mat Min Exi Min Mat Gar Fac Sto Rec Scr Fac Gar Fac Was Fac Gar Fac Combat Hostiles Destroyed 154 | . 8 1 21 6 . . 7 22 7 30 3 . 5 1 . . 1 17 25 Melee 3 | . . . . . . . . . . . . . . . . . . . 3 Guns 59 | . 1 1 . . . . 7 14 7 23 3 . 1 1 . . 1 . . Cannons 52 | . 3 . 17 1 . . . 1 . . . . . . . . . 16 14 AOE 33 | . 4 . 4 5 . . . 7 . 4 . . 3 . . . . . 6 Classes Destroyed 22 | 1 7 . 2 . . . 2 3 . 2 . 3 . . . 1 . 1 . Worker 5 | . 1 1 . . . . . . . 3 . . . . . . . . . Builder 4 | . 1 1 . . . . . . . 1 . . . . . . . . 1 Tunneler 4 | 2 . . 1 . . . . . . . . . . . . . . . 1 Hauler 15 | . 1 . 5 . . . . . . 5 . . 3 . . . . . 1 Recycler 10 | . . . 1 1 . . . . . 1 4 . . . . . 1 . 2 Operator 1 | . 1 . . . . . . . . . . . . . . . . . . Watcher 4 | . 2 . 2 . . . . . . . . . . . . . . . . Swarmer 42 | . 6 . 6 3 . . . 9 6 . . . 4 . . . . 5 3 Cutter 3 | . . . . . . . . 2 . . . . . 1 . . . . . Grunt 57 | . 2 1 10 3 . . 5 3 . 15 1 . . . . . . 6 11 Brawler 4 | . . . . . . . 1 . . 2 . . . . . . . 1 . Duelist 2 | . . . . . . . . . . 2 . . . . . . . . . Protector 2 | . . . . . . . . . . 1 . 1 . . . . . . . Sentry 25 | . . . 5 . . . . 5 1 7 2 . . . . . . 3 2 Specialist 4 | . . . . . . . . 2 . . . . . . . . . 2 . Hunter 10 | . . . . . . . 1 . . 2 . . 1 . . . 1 1 4 Programmer 7 | . . . . . . . . 1 . 1 . . . . . . . . 5 Striker 1 | . . . . . . . . . . . . . . . . . . 1 . Scientist 1 | . . . . . . . . . . . . 1 . . . . . . . Scrapoid 25 | . . . . . . . . . . . . 25 . . . . . . . Botcube 2 | . . . . . . . . . . . . 1 . . . . . 1 . Martyr 2 | . . . . . . . . . . . . . . . . 2 . . . Best Kill Streak 10 | 2 5 1 8 3 . . 2 4 7 9 2 1 3 1 . . 2 4 10 Combat Bots Only 9 | . 5 1 7 3 . . 2 4 7 5 1 . 3 1 . . 1 4 9 Max Kills in Single Turn 4 | 1 3 1 2 3 . . 1 4 1 4 1 1 2 1 . 1 1 1 4 Gunslinging . | . . . . . . . . . . . . . . . . . . . . Exploded 4 | . 3 . 2 3 . . . 4 . 3 . . 2 . . . . . 3 Melee 1 | . . . . . . . . . . . . . . . . . . . 1 Uniques/NPCs Destroyed 1 | . . . . . . . . . . . . 1 . . . . . . . Triborg (-7/Scraptown) Combat | -11 -10 -10 -9 -9 -9 -8 -8 -8 -7 -7 -7 -7 -5 -5 -4 -4 -4 -4 -4 -------- Run | Yrd Mat Min Mat Min Exi Min Mat Gar Fac Sto Rec Scr Fac Gar Fac Was Fac Gar Fac Hostile Shots Fired 1423 | . 29 2 61 17 . . 35 91 73 407 63 4 77 9 . . 12 265 278 Missed 462 | . 6 2 18 4 . . 12 22 17 124 34 . 24 1 . . 1 98 99 Deflected 3 | . . . . . . . . . . . . . . . . . . 3 . Damage Taken 12251 | . 273 21 590 154 . . 373 1017 358 1764 117 82 1020 206 . . 201 2415 3660 Core 1737 | . 80 . 73 30 . . . 153 16 167 2 5 57 . . . . 177 977 Absorbed by Shields 1356 | . . . . . . . . . 144 701 109 35 247 116 . . . 4 . Ignored by Resistances 971 | . . . . . . . . 133 139 242 . . . 10 . . 18 334 95 Regen/Repaired (Parts) 965 | . . . 14 . . . . . . . . . . . . 951 . . . Core Remaining (%) 80 | 100 . 68 . . . 74 . 72 . . . 72 . 94 . . . . . Volleys Fired 664 | 3 27 8 63 7 . . 27 59 24 114 14 40 23 29 . 34 7 95 90 Largest 2 | 1 2 2 2 2 . . 2 2 2 2 2 1 2 2 . 1 2 2 2 Hottest 226 | 40 80 50 67 66 . . 46 98 120 140 120 60 130 90 . 20 85 226 226 Shots Fired 1105 | 3 49 16 122 10 . . 54 107 46 226 28 40 41 40 . 34 14 167 108 Gun 611 | 3 25 8 1 . . . 54 95 44 222 28 11 39 31 . 34 14 2 . Cannon 416 | . 21 8 117 6 . . . 5 2 1 . . . . . . . 154 102 Launcher 26 | . 3 . 4 4 . . . 7 . 3 . . 2 . . . . . 3 Special 52 | . . . . . . . . . . . . 29 . 9 . . . 11 3 Kinetic 438 | . 35 16 118 6 . . 54 95 44 70 . . . . . . . . . Thermal 574 | 3 9 . . . . . . 5 2 153 28 11 39 31 . 34 14 156 89 Explosive 26 | . 3 . 4 4 . . . 7 . 3 . . 2 . . . . . 3 Electromagnetic 15 | . 2 . . . . . . . . . . . . . . . . . 13 Robot Hit Streak 31 | 2 6 4 10 6 . . 7 23 16 29 31 14 23 11 . 15 4 18 13 Robot Miss Streak 7 | 1 5 2 4 1 . . 3 3 4 3 2 1 7 2 . 1 2 3 2 Penetration Max . | . . . . . . . . . . . . . . . . . . . . Secondary Targets 5 | . . . . . . . 1 . 1 3 . . . . . . . . . Max Gunslinging Chain 1 | . . . . . . . 1 . 1 1 . . . . . . . . . Capacitor 63 | . . . . . . . . . . . . . . . . . . . 63 Shots Hit Robots 855 | 2 27 8 74 6 . . 36 67 30 182 25 99 31 18 . 37 7 115 91 Core Hits 388 | 2 19 3 37 6 . . 16 35 14 101 9 25 18 3 . 5 3 37 55 Critical Kills 6 | . . . . . . . 1 1 . . . 3 . . . . . 1 . Critical Parts Destroyed 1 | . . . . . . . 1 . . . . . . . . . . . . Critical Strikes 40 | . 2 . 8 . . . 2 2 . 11 . 8 2 1 . 2 1 1 . Burn 16 | . . . . . . . . . . 10 . . 2 1 . 2 1 . . Meltdown 4 | . . . . . . . . . . . . 3 . . . . . 1 . Destroy 5 | . . . . . . . 2 2 . 1 . . . . . . . . . Blast 10 | . 2 . 8 . . . . . . . . . . . . . . . . Impale 5 | . . . . . . . . . . . . 5 . . . . . . . Melee Attacks 120 | . . . . . . . . . . . . 75 4 4 . 6 . 6 25 Thermal 46 | . . . . . . . . . . . . 24 4 4 . 6 . 6 2 Impact . | . . . . . . . . . . . . . . . . . . . . Slashing . | . . . . . . . . . . . . . . . . . . . . Piercing 74 | . . . . . . . . . . . . 51 . . . . . . 23 Sneak Attacks 84 | . . . . . . . . . . . . 71 . . . 6 . 6 1 Combat Hostiles . | . . . . . . . . . . . . . . . . . . . . Follow-up Attacks . | . . . . . . . . . . . . . . . . . . . . Damage Inflicted 29436 | 33 594 129 2174 503 . . 527 1678 447 4831 518 6258 955 236 . 1376 186 4602 4389 Guns 8186 | 33 172 40 10 . . . 527 994 447 3597 514 36 754 236 . 610 186 30 . Cannons 9015 | . 219 86 1633 86 . . . 25 . . . . . . . . . 3887 3079 Explosions 3845 | . 202 . 481 404 . . . 659 . 1201 . . 201 . . . . . 697 Melee 8266 | . . . . . . . . . . . . 6222 . . . 766 . 685 593 Ramming 124 | . 1 3 50 13 . . . . . 33 4 . . . . . . . 20 Kinetic 4983 | . 306 126 1643 86 . . 527 994 447 854 . . . . . . . . . Thermal 16919 | 33 67 . . . . . . 25 . 2743 514 3451 754 236 . 1376 186 4602 2932 Explosive 3652 | . 202 . 481 404 . . . 659 . 1201 . . 201 . . . . . 504 Electromagnetic 403 | . 18 . . . . . . . . . . . . . . . . . 385 Impact . | . . . . . . . . . . . . . . . . . . . . Slashing . | . . . . . . . . . . . . . . . . . . . . Piercing 3355 | . . . . . . . . . . . . 2807 . . . . . . 548 Highest Corruption 15 | . 1 15 . 3 3 3 . . . 4 4 . . . . . . . 4 Average Corruption 2 | . 1 4 . 3 3 3 . . . 4 1 . . . . . . . 2 Corruption Purged 4 | . . . . . . . . . . . 4 . . . . . . . . Corruption Blocked . | . . . . . . . . . . . . . . . . . . . . Effects 108 | . 7 17 . 10 12 1 . . . 34 3 . . . . . . . 24 Message Errors 19 | . 3 2 . 3 1 . . . . 6 1 . . . . . . . 3 Matter Fused 27 | . 1 3 . 2 3 1 . . . 11 . . . . . . . . 6 Heat Flow Errors 9 | . . 2 . 1 . . . . . 2 . . . . . . . . 4 Energy Discharges 22 | . 1 4 . 2 5 . . . . 6 2 . . . . . . . 2 Parts Rejected 2 | . 1 . . . . . . . . . . . . . . . . . 1 Parts Fused 5 | . . 2 . . . . . . . 1 . . . . . . . . 2 Data Loss (minor) 11 | . . 2 . . 2 . . . . 4 . . . . . . . . 3 Data Loss (major) 9 | . 1 2 . 2 1 . . . . . . . . . . . . . 3 Misfires 2 | . . . . . . . . . . 2 . . . . . . . . . Alerts 2 | . . . . . . . . . . 2 . . . . . . . . . Overload Shots 15 | . . . . . . . . . . 9 2 1 3 . . . . . . Effects 1 | . . . . . . . . . . 1 . . . . . . . . . Heat Surge 1 | . . . . . . . . . . 1 . . . . . . . . . Overflow Damage 912 | . . . 21 12 . . . 27 . 7 . 384 . . . 88 . 260 113 Projectiles 197 | . . . 20 2 . . . . . . . . . . . . . 86 89 Explosions 65 | . . . 1 10 . . . 27 . 7 . . . . . . . . 20 Melee 650 | . . . . . . . . . . . . 384 . . . 88 . 174 4 Knockbacks 13 | . 1 1 10 . . . . . . 1 . . . . . . . . . Impact 1 | . . . . . . . . . . 1 . . . . . . . . . Kinetic 12 | . 1 1 10 . . . . . . . . . . . . . . . . Secondary . | . . . . . . . . . . . . . . . . . . . . Self-Inflicted Damage 528 | . 37 . 46 27 . . . 151 . 76 . . . . . . . . 191 Shots 18 | . 1 . 2 1 . . . 4 . 4 . . . . . . . . 6 Rammed 9 | . 1 1 4 1 . . . . . 1 1 . . . . . . . . Targets Rammed 15 | . 1 1 4 2 . . . . . 2 1 . . . . . . . 4 Kicked 4 | . . . . . . . . . . . . . . . . . . . 4 Crushed 2 | . . . . 1 . . . . . 1 . . . . . . . . . Highest Temperature 372 | . 20 240 132 243 . . 94 106 80 260 90 364 74 78 . 16 . 372 354 Average Temperature 60 | . 8 116 38 58 . . 35 26 29 46 63 131 28 30 . 7 . 90 111 Received Heat Transfer 2534 | . 21 . 210 36 . . 180 288 46 547 34 36 104 27 . . 18 408 579 Effects 3 | . . . . . . . . . . . . 1 . . . . . 2 . Shutdowns 2 | . . . . . . . . . . . . 1 . . . . . 1 . Energy Bleed 1 | . . . . . . . . . . . . . . . . . . 1 . Siege Activations . | . . . . . . . . . . . . . . . . . . . . Martial Activations . | . . . . . . . . . . . . . . . . . . . . Shielding Activations 3 | . . . . . . . . . . . . . . . . 1 . 2 . Total Turns 41 | . . . . . . . . . . . . . . . . 1 . 40 . Longest Duration 22 | . . . . . . . . . . . . . . . . 1 . 22 . Robots Disrupted . | . . . . . . . . . . . . . . . . . . . . Combat Hostiles . | . . . . . . . . . . . . . . . . . . . . Robots Corrupted 2 | . . . . . . . . . . . . . . . . . . . 2 Combat Hostiles 2 | . . . . . . . . . . . . . . . . . . . 2 Parts Fried 4 | . . . . . . . . . . . . . . . . . . . 4 Impact Corruptions . | . . . . . . . . . . . . . . . . . . . . Robots Melted 8 | . . . . . . . . . . 3 . 3 1 . . . . 1 . Combat Hostiles 5 | . . . . . . . . . . 3 . . 1 . . . . 1 . Parts Melted 46 | . . . 1 . . . . . . 22 3 4 3 . . 2 1 7 3 Heat Transferred 17505 | 75 150 . . . . . . 37 . 5467 951 1745 1443 481 . 2052 370 4118 616 Parts Sabotaged 2 | . . . . . . . . . . . . . . . . . . . 2 Parts Stolen . | . . . . . . . . . . . . . . . . . . . . Parts Stripped . | . . . . . . . . . . . . . . . . . . . . Power Chain Reactions 2 | . . . . . . . . . . . . . . . . . . . 2 Alert | -11 -10 -10 -9 -9 -9 -8 -8 -8 -7 -7 -7 -7 -5 -5 -4 -4 -4 -4 -4 ------- Run | Yrd Mat Min Mat Min Exi Min Mat Gar Fac Sto Rec Scr Fac Gar Fac Was Fac Gar Fac Maximum Alert Level 5 | . 1 . 1 . . . . 3 2 2 1 . 4 5 4 1 2 4 4 Low Security (%) 52 | 100 96 100 78 100 . 100 100 18 . 16 94 . 37 . . 66 68 . . Level 1 12 | . 3 . 21 . . . . 19 . 50 5 . 7 . . 33 17 7 . Level 2 11 | . . . . . . . . 27 100 32 . . 4 . . . 14 15 45 Level 3 11 | . . . . . . . . 34 . . . . 42 11 . . . 24 49 Level 4 6 | . . . . . . . . . . . . . 8 23 100 . . 52 5 Level 5 4 | . . . . . . . . . . . . . . 65 . . . . . High Security . | . . . . . . . . . . . . . . . . . . . . Max Security . | . . . . . . . . . . . . . . . . . . . . Peak Influence 2372 | 5 216 34 298 189 . . 59 941 526 612 244 . 1207 2372 1161 399 507 1555 1143 Initial 1161 | . . . 3 113 . . . 3 493 225 234 . . 832 1161 399 . 340 816 Average 408 | . 62 2 100 58 . . 10 492 468 326 58 . 545 1816 1152 139 160 1057 805 Influence Increases 10394 | 10 328 66 710 226 . . 223 968 173 1065 310 . 1489 1695 . . 683 1325 1123 Destroy 0b10 Robot/C 4900 | . 160 40 440 120 . . 140 440 140 660 60 . 540 740 . . 220 700 500 Destroy 0b10 Robot/NC 280 | 10 30 10 50 5 . . . . . 65 20 . 35 . . . 30 . 25 Destroy Leader 818 | . 36 10 106 20 . . 30 30 30 182 . . 110 40 . . 72 40 112 Allied During Kill 1449 | . . 6 4 . . . . . . 28 6 . 433 556 . . 279 123 14 Successful Hack 186 | . 22 . 32 . . . 8 44 . . 14 . . 21 . . . 21 24 Select Force Hacks 210 | . . . . . . . . . . . 210 . . . . . . . . Disable Machine 375 | . 15 . 30 60 . . . . . 75 . . 45 45 . . 30 . 75 Anti-Garrison Action 1000 | . . . . . . . . 350 . . . . 150 200 . . . 300 . Destroy Structure 831 | . 20 . 33 21 . . . 74 3 55 . . 176 63 . . 52 96 238 Lose Combat Pursuer 345 | . 45 . 15 . . . 45 30 . . . . . 30 . . . 45 135 Influence Decreases 4897 | 10 328 56 422 261 . . 218 30 170 687 544 . 300 315 20 399 197 110 830 Time Decay 3902 | 10 318 56 422 261 . . 213 . 150 577 544 . 300 . 20 399 82 . 550 Lost Part 440 | . 10 . . . . . . 30 20 70 . . . . . . . 70 240 Lost Ally 275 | . . . . . . . . . . 40 . . . 40 . . 115 40 40 Purge Threat 280 | . . . . . . . 5 . . . . . . 275 . . . . . Squads Dispatched 33 | . . . 2 . . . 1 . 2 8 . . 5 . . . 3 . 12 Investigation 2 | . . . . . . . 1 . . . . . . . . . . . 1 Extermination 5 | . . . . . . . . . . 2 . . . . . . . . 3 Reinforcement 11 | . . . 2 . . . . . . 4 . . . . . . 1 . 4 Assault 8 | . . . . . . . . . . 2 . . 2 . . . . . 4 Garrison 7 | . . . . . . . . . 2 . . . 3 . . . 2 . . Intercept . | . . . . . . . . . . . . . . . . . . . . Searches Triggered . | . . . . . . . . . . . . . . . . . . . . Construction Impeded 2 | . . . 1 . . . . . . 1 . . . . . . . . . Haulers Reinforced 3 | . . . . . . . . . . 2 . . . . . . . . 1 Active Scanning Responses . | . . . . . . . . . . . . . . . . . . . . Cargo Convoy Interrupts . | . . . . . . . . . . . . . . . . . . . . Alert ID Control Effect 3 | . . . . . . . . . . . . . . . . . . 3 . Stealth | -11 -10 -10 -9 -9 -9 -8 -8 -8 -7 -7 -7 -7 -5 -5 -4 -4 -4 -4 -4 --------- Run | Yrd Mat Min Mat Min Exi Min Mat Gar Fac Sto Rec Scr Fac Gar Fac Was Fac Gar Fac Distress Signals 9 | . . . 3 . . . . . . 2 . 1 1 . . . 1 . 1 Communications Jammed . | . . . . . . . . . . . . . . . . . . . . Distress Signals . | . . . . . . . . . . . . . . . . . . . . Times Spotted 364 | . 22 2 37 6 . . 10 21 8 40 2 49 26 29 . . 13 44 55 Peak Tracking Total 17 | . 5 1 7 3 . . 3 3 5 6 1 8 6 7 . . 3 8 17 Tactical Retreats 15 | . 1 . 1 . . . 2 2 . . . 2 . 1 . . . 2 4 Traps | -11 -10 -10 -9 -9 -9 -8 -8 -8 -7 -7 -7 -7 -5 -5 -4 -4 -4 -4 -4 ------- Run | Yrd Mat Min Mat Min Exi Min Mat Gar Fac Sto Rec Scr Fac Gar Fac Was Fac Gar Fac Traps Triggered 24 | . 2 1 . . . . 1 3 . . . . . 5 1 . . 7 4 Indirectly . | . . . . . . . . . . . . . . . . . . . . Trap Hack Attempts . | . . . . . . . . . . . . . . . . . . . . Triggered . | . . . . . . . . . . . . . . . . . . . . Disarmed . | . . . . . . . . . . . . . . . . . . . . Reprogrammed . | . . . . . . . . . . . . . . . . . . . . Reused . | . . . . . . . . . . . . . . . . . . . . Traps Extracted 5 | . . 5 . . . . . . . . . . . . . . . . . Installed . | . . . . . . . . . . . . . . . . . . . . Triggered . | . . . . . . . . . . . . . . . . . . . . Most Traps Carried 5 | . . 5 5 5 5 5 5 5 5 5 5 5 5 5 5 5 5 5 5 Machines | -11 -10 -10 -9 -9 -9 -8 -8 -8 -7 -7 -7 -7 -5 -5 -4 -4 -4 -4 -4 ---------- Run | Yrd Mat Min Mat Min Exi Min Mat Gar Fac Sto Rec Scr Fac Gar Fac Was Fac Gar Fac Machines Disabled 53 | . 2 . 2 4 . . . 2 . 5 . 15 4 6 . . 2 6 5 Max in Single Turn 5 | . 1 . 1 2 . . . 1 . 1 . 1 . 1 . . 1 1 5 Garrison Access 2 | . . . . . . . . . . . . . 1 . . . . . 1 Garrison Relay 8 | . . . . . . . . 2 . . . . . 2 . . . 4 . Machines Repaired . | . . . . . . . . . . . . . . . . . . . . Machines Dismantled 6 | . . . . . . . . . . . . 6 . . . . . . . Machines Sabotaged . | . . . . . . . . . . . . . . . . . . . . Overloaded Fab Kills . | . . . . . . . . . . . . . . . . . . . . Hacking | -11 -10 -10 -9 -9 -9 -8 -8 -8 -7 -7 -7 -7 -5 -5 -4 -4 -4 -4 -4 --------- Run | Yrd Mat Min Mat Min Exi Min Mat Gar Fac Sto Rec Scr Fac Gar Fac Was Fac Gar Fac Machines Accessed 53 | . 6 1 7 . 2 . 2 2 . 3 12 2 3 2 . . 1 2 8 Terminals 32 | . 6 . 6 . . . 1 2 . 3 5 . . 2 . . . 2 5 Fabricators 1 | . . . . . . . . . . . . . 1 . . . . . . Repair Stations 2 | . . . 1 . . . . . . . . . . . . . . . 1 Recycling Units 8 | . . . . . . . . . . . 7 . . . . . . . 1 Scanalyzers 1 | . . . . . . . . . . . . . 1 . . . . . . Garrison Access 4 | . . . . . . . 1 . . . . . 1 . . . 1 . 1 Total Hacks 104 | . 13 1 22 . 2 . 7 6 . 4 15 5 6 4 . . 1 5 13 Successful 60 | . 7 1 13 . 2 . 4 3 . 2 12 5 2 2 . . 1 2 4 Failed 43 | . 6 . 9 . . . 2 3 . 2 3 . 4 2 . . . 3 9 Catastrophic 9 | . . . 1 . . . . 1 . . . . 2 . . . . . 5 Database Lockouts 1 | . . . . . . . 1 . . . . . . . . . . . . Manual 68 | . 13 . 19 . 1 . 6 3 . 2 17 . . 1 . . . . 6 Terminals 73 | . 13 . 20 . . . 5 6 . 4 8 . . 4 . . . 5 8 Fabricators 2 | . . . . . . . . . . . . . 2 . . . . . . Repair Stations 4 | . . . 2 . . . . . . . . . . . . . . . 2 Recycling Units 9 | . . . . . . . . . . . 7 . . . . . . . 2 Scanalyzers 3 | . . . . . . . . . . . . . 3 . . . . . . Garrison Access 5 | . . . . . . . 2 . . . . . 1 . . . 1 . 1 Terminal Hacks 25 | . . 1 5 . 2 . 3 3 . 2 . 5 . 2 . . . 2 . Record 5 | . . . . . 1 . . . . . . 4 . . . . . . . Robot Analysis 3 | . . . 1 . . . 2 . . . . . . . . . . . . Open Door 5 | . . 1 . . . . . . . 2 . . . 1 . . . 1 . Level Access Points 1 | . . . 1 . . . . . . . . . . . . . . . . Emergency Access Points 3 | . . . . . . . . 1 . . . . . 1 . . . 1 . Unreport Threat 1 | . . . . . . . 1 . . . . . . . . . . . . Locate Traps 2 | . . . 2 . . . . . . . . . . . . . . . . Recall Reinforcements 1 | . . . 1 . . . . . . . . . . . . . . . . Garrison Registry 1 | . . . . . . . . 1 . . . . . . . . . . . Security Stations 1 | . . . . . . . . 1 . . . . . . . . . . . Derelict Proto ID Bank 2 | . . . . . 1 . . . . . . 1 . . . . . . . Fabricator Hacks . | . . . . . . . . . . . . . . . . . . . . Repair Station Hacks 3 | . . . 2 . . . . . . . . . . . . . . . 1 Scan Component 2 | . . . 1 . . . . . . . . . . . . . . . 1 Repair 1 | . . . 1 . . . . . . . . . . . . . . . . Recycling Unit Hacks 1 | . . . . . . . . . . . . . . . . . . . 1 Retrieve Components 1 | . . . . . . . . . . . . . . . . . . . 1 Scanalyzer 1 | . . . . . . . . . . . . . 1 . . . . . . Insert Component 1 | . . . . . . . . . . . . . 1 . . . . . . Garrison Access Hacks 4 | . . . . . . . 1 . . . . . 1 . . . 1 . 1 Unlock Access 3 | . . . . . . . 1 . . . . . 1 . . . 1 . . Seal Access 1 | . . . . . . . . . . . . . . . . . . . 1 Unauthorized Hacks 26 | . 7 . 6 . . . . . . . 12 . . . . . . . 1 Terminals 19 | . 7 . 6 . . . . . . . 5 . . . . . . . 1 Track 1 | . . . . . . . . . . . . . . . . . . . 1 Botnet 4 | . 2 . 1 . . . . . . . 1 . . . . . . . . Skim 14 | . 5 . 5 . . . . . . . 4 . . . . . . . . Fabricators . | . . . . . . . . . . . . . . . . . . . . Repair Stations . | . . . . . . . . . . . . . . . . . . . . Recycling Units 7 | . . . . . . . . . . . 7 . . . . . . . . Tunnel 7 | . . . . . . . . . . . 7 . . . . . . . . Scanalyzers . | . . . . . . . . . . . . . . . . . . . . Garrison Access . | . . . . . . . . . . . . . . . . . . . . Data Cores Recovered 1 | . 1 . . . . . . . . . . . . . . . . . . Used . | . . . . . . . . . . . . . . . . . . . . Hacking Detections 34 | . 6 . 7 . . . 1 2 . 2 3 . 3 1 . . 1 2 6 Full Trace Events 2 | . . . . . . . . 1 . . . . . . . . . . 1 Feedback Events . | . . . . . . . . . . . . . . . . . . . . Feedback Blocked . | . . . . . . . . . . . . . . . . . . . . Robot Schematics Acquired . | . . . . . . . . . . . . . . . . . . . . Robots Built . | . . . . . . . . . . . . . . . . . . . . Authchips . | . . . . . . . . . . . . . . . . . . . . Time . | . . . . . . . . . . . . . . . . . . . . Total Robot Build Rating . | . . . . . . . . . . . . . . . . . . . . Part Schematics Acquired 26 | . . . . . . . . . . . . 4 13 1 . 2 2 1 3 Parts Built . | . . . . . . . . . . . . . . . . . . . . Authchips . | . . . . . . . . . . . . . . . . . . . . Time . | . . . . . . . . . . . . . . . . . . . . Total Part Build Rating . | . . . . . . . . . . . . . . . . . . . . Parts Repaired 1 | . . . 1 . . . . . . . . . . . . . . . . Time 26 | . . . 26 . . . . . . . . . . . . . . . . Parts Recycled . | . . . . . . . . . . . . . . . . . . . . Recycled Matter . | . . . . . . . . . . . . . . . . . . . . Retrieved Matter . | . . . . . . . . . . . . . . . . . . . . Retrieved Components 7 | . . . . . . . . . . . . . . . . . . . 7 Parts Scanalyzed 1 | . . . . . . . . . . . . . 1 . . . . . . Part Schematics Acquired . | . . . . . . . . . . . . . . . . . . . . Parts Damaged . | . . . . . . . . . . . . . . . . . . . . Bothacking | -11 -10 -10 -9 -9 -9 -8 -8 -8 -7 -7 -7 -7 -5 -5 -4 -4 -4 -4 -4 ------------ Run | Yrd Mat Min Mat Min Exi Min Mat Gar Fac Sto Rec Scr Fac Gar Fac Was Fac Gar Fac Used RIF Installer 3 | . . . . . . . . 1 . . . . . 1 . . . 1 . Signal Jammer 1 | . . . . . . . . . . . . . . 1 . . . . . Alert ID Control 1 | . . . . . . . . . . . . . . . . . . 1 . Robots Hacked 12 | . . . . . . . . . . . . . . 1 . . . 9 2 Non-combat 1 | . . . . . . . . . . . . . . 1 . . . . . Combat 11 | . . . . . . . . . . . . . . . . . . 9 2 Robot Hacks Applied 13 | . . . . . . . . . . . . . . 2 . . . 9 2 purge_threat 2 | . . . . . . . . . . . . . . 2 . . . . . reboot_system 1 | . . . . . . . . . . . . . . . . . . 1 . overwrite_iff 7 | . . . . . . . . . . . . . . . . . . 7 . formatsys_high 3 | . . . . . . . . . . . . . . . . . . 1 2 Relay Couplers Released 41 | . . . . . . . . 13 . . . . 1 9 . . . 16 2 Machine Destruction 37 | . . . . . . . . 9 . . . . 1 9 . . . 16 2 Programmers 4 | . . . . . . . . 4 . . . . . . . . . . . Attached 7 | . . . . . . . . . . . . . . 1 . . . 4 2 Fabnet Peak Effective % . | . . . . . . . . . . . . . . . . . . . . Robots Rewired 7 | . . . . . . . . . . . 4 . . 3 . . . . . Allies Hacked . | . . . . . . . . . . . . . . . . . . . . Hacks Repelled . | . . . . . . . . . . . . . . . . . . . . Allies | -11 -10 -10 -9 -9 -9 -8 -8 -8 -7 -7 -7 -7 -5 -5 -4 -4 -4 -4 -4 -------- Run | Yrd Mat Min Mat Min Exi Min Mat Gar Fac Sto Rec Scr Fac Gar Fac Was Fac Gar Fac Total Allies 73 | . . 2 . . . . . . . 2 4 31 . 3 . 20 . 9 2 Largest Group 25 | . . 2 2 . . . . . . 2 4 13 6 8 5 25 23 4 2 Highest-Rated Group 1104 | . . 41 41 . . . . . . 62 112 624 464 513 328 1104 1004 236 94 Highest-Rated Ally 108 | . . 31 31 . . . . . . 31 40 108 108 108 108 108 108 99 47 Total Orders 242 | . . . . . . . . . . . 2 232 . 1 . 3 . 4 . STAY 70 | . . . . . . . . . . . 1 65 . . . 2 . 2 . FOLLOW 21 | . . . . . . . . . . . 1 17 . . . 1 . 2 . AID 2 | . . . . . . . . . . . . 1 . 1 . . . . . RETURN 149 | . . . . . . . . . . . . 149 . . . . . . . Ally Attacks 1552 | . . 9 9 . . . . . . 35 4 1028 118 119 . . 133 91 6 Total Damage 30433 | . . 127 105 . . . . . . 504 58 14855 2970 4197 . . 3752 3750 115 Kills 268 | . . 1 2 . . . . . . 6 . 152 27 37 . . 21 22 . Allies Corrupted 2 | . . . . . . . . . . . . . . . . . . 1 1 Allies Melted 5 | . . . . . . . . . . . . 3 . 1 . . 1 . . Turrets Deployed 1 | . . . . . . . . . . . . . . 1 . . . . . Intel | -11 -10 -10 -9 -9 -9 -8 -8 -8 -7 -7 -7 -7 -5 -5 -4 -4 -4 -4 -4 ------- Run | Yrd Mat Min Mat Min Exi Min Mat Gar Fac Sto Rec Scr Fac Gar Fac Was Fac Gar Fac Active Infowar (turns) 14947 | 30 919 755 1601 1011 40 . 1123 1846 202 . . 758 1030 1315 50 1252 229 1541 1245 Seismic 7527 | 30 919 755 1601 1011 40 . 1123 1846 202 . . . . . . . . . . Machine Analysis 7420 | . . . . . . . . . . . . 758 1030 1315 50 1252 229 1541 1245 Robot Analysis Total 3 | . . . 1 . . . 2 . . . . . . . . . . . . Derelict Logs Recovered 5 | . . 2 . 3 . . . . . . . . . . . . . . . Drone Launches 193 | . . . . . . . . . . . . 193 . . . . . . . Drone Recoveries 181 | . . . . . . . . . . . . 181 . . . . . . . Exploration | -11 -10 -10 -9 -9 -9 -8 -8 -8 -7 -7 -7 -7 -5 -5 -4 -4 -4 -4 -4 ------------- Run | Yrd Mat Min Mat Min Exi Min Mat Gar Fac Sto Rec Scr Fac Gar Fac Was Fac Gar Fac Turns Passed 39023 | 111 1362 871 2371 1119 660 61 1199 1846 304 1760 2276 18069 1030 1315 50 1252 229 1541 1597 Spaces Moved 16270 | 61 552 405 846 446 269 25 263 630 109 527 670 8245 376 485 21 548 140 625 1027 Core 78 | 8 . . . . . . . . . . . . . . . . . . 70 Treads 5265 | 53 552 49 846 446 269 25 263 630 . 206 596 191 376 485 21 257 . . . Legs 1576 | . . . . . . . . . . . . . . . . 291 140 625 520 Wheels 8941 | . . 356 . . . . . . 109 321 74 8054 . . . . . . 27 Hover . | . . . . . . . . . . . . . . . . . . . . Flight 410 | . . . . . . . . . . . . . . . . . . . 410 Fastest Speed 40 | 50 160 160 243 243 243 243 243 240 190 205 220 131 243 243 248 133 133 124 40 Average Speed 185 | 145 166 174 243 243 243 243 243 242 204 246 317 160 243 244 248 170 133 179 120 Slowest Speed 1500 | 160 320 490 243 243 243 243 243 243 205 400 330 410 243 248 248 280 133 280 1500 Overloaded Moves . | . . . . . . . . . . . . . . . . . . . . Propulsion Burnouts . | . . . . . . . . . . . . . . . . . . . . Robots Hopped 2 | . . . . . . . . . . . . . . . . . . . 2 Cave-ins Triggered . | . . . . . . . . . . . . . . . . . . . . Exploration Rate (%) 51 | 4 93 80 80 95 69 14 18 59 3 58 97 88 15 75 1 88 6 69 27 Regions Visited 19 Branch Regions 7 Pre-discovered Areas 13 | . 2 1 1 1 1 . . . . . 7 . . . . . . . . Known Exits Taken 8 | . . . 1 . . 1 1 . 1 . 1 1 1 . . . 1 . . Unknown Exits Taken 6 | 1 1 1 . 1 1 . . . . 1 . . . . . . . . . Scrap Searched 9 | . . 2 . 2 . . . . . . . 5 . . . . . . . Spaces Dug 57 | . . . . 9 . . . . 1 4 . 19 7 5 . . . 1 11 Terrain Destroyed 501 | . 18 . 52 24 . . . 55 1 93 . 16 32 5 . . 3 34 168 Melee 16 | . . . . . . . . . . . . 3 4 3 . . . . 6 Projectile 83 | . . . 12 . . . . . 1 6 . . 3 . . . 3 34 24 AOE 387 | . 18 . 40 24 . . . 55 . 87 . . 25 . . . . . 138 Terrain Rammed . | . . . . . . . . . . . . . . . . . . . . Walls Destroyed . | . . . . . . . . . . . . . . . . . . . . Machines Disabled . | . . . . . . . . . . . . . . . . . . . . Actions | -11 -10 -10 -9 -9 -9 -8 -8 -8 -7 -7 -7 -7 -5 -5 -4 -4 -4 -4 -4 --------- Run | Yrd Mat Min Mat Min Exi Min Mat Gar Fac Sto Rec Scr Fac Gar Fac Was Fac Gar Fac Total 23920 | 76 947 556 1052 465 280 26 773 851 142 767 786 12940 455 590 21 828 171 890 1304 Wait 5785 | . 334 131 68 . . . 472 117 . 52 63 4141 39 33 . 196 17 68 54 Move 16249 | 60 551 404 845 445 268 24 263 629 108 526 669 8244 375 484 21 547 139 624 1023 Hop 2 | . . . . . . . . . . . . . . . . . . . 2 Pick Up 280 | 5 13 5 25 1 2 . 2 8 2 12 2 159 2 12 . 2 1 18 9 Fast Attach 104 | 7 2 . 3 . . . 1 3 2 10 7 23 3 2 . 14 . 6 21 Attach 63 | . 3 . 3 . . 2 3 3 2 6 1 18 1 2 . 3 . 9 7 Detach 44 | . 1 . 1 . . . 1 1 . 4 1 16 1 1 . 6 . 3 8 Swap 142 | 1 9 6 17 9 1 . 3 14 4 16 1 10 5 7 . 2 3 23 11 Drop 334 | . 6 1 23 1 9 . 1 11 . 25 6 162 2 8 . 17 4 18 40 Fire 664 | 3 27 8 63 7 . . 27 59 24 114 14 40 23 29 . 34 7 95 90 Melee 120 | . . . . . . . . . . . . 75 4 4 . 6 . 6 25 Ram . | . . . . . . . . . . . . . . . . . . . . Kick 4 | . . . . . . . . . . . . . . . . . . . 4 Crush 11 | . 1 1 4 2 . . . . . 2 1 . . . . . . . . Escape Stasis 44 | . . . . . . . . 6 . . . . . 8 . . . 20 10 Rewire 22 | . . . . . . . . . . . 21 . . . . 1 . . . Trap . | . . . . . . . . . . . . . . . . . . . . Miscellaneous 52 | . . . . . . . . . . . . 52 . . . . . . . Route ------- -11/Scrapyard -10/Materials (discovered 6 exits: *Mat x3 / *Min x2 / Sub) -10/Mines -9/Materials (discovered 4 exits: *Mat x3 / *Min) -9/Mines (discovered 3 exits: *Mat x2 / *Exi) -9/Exiles (discovered 2 exits: [*Min x2]) -8/Mines -8/Materials (discovered 3 exits: Fac x2 / Gar) -8/Garrison (discovered 3 exits: *Fac x3) -7/Factory -7/Storage (discovered 2 exits: *Fac / *Rec) -7/Recycling (discovered 2 exits: *Fac / *Scr) -7/Scraptown (discovered 2 exits: *Fac x2) -5/Factory (discovered 2 exits: [*Fac] / Gar) -5/Garrison (discovered 3 exits: [*Fac x3]) -4/Factory -4/Waste -4/Factory -4/Garrison (discovered 3 exits: *Fac x3) -4/Factory (discovered 2 exits: [*Res] / [*Upp]) History --------- Turn | Location | Event 3 | -11/Scrapyard | Discovered new exit (range 14) 112 | -11/Scrapyard | Entered Materials 200 | -10/Materials | Discovered new exit (range 15) 306 | -10/Materials | Build established: Mutant 430 | -10/Materials | Discovered new exit (range 2) 443 | -10/Materials | Discovered new exit (range 16) 673 | -10/Materials | Discovered new exit (range 15) 822 | -10/Materials | Discovered new exit (range 16) 1185 | -10/Materials | Learned 2 Storage zone layouts 1246 | -10/Materials | Learned location of 1 exit from Recycling 1295 | -10/Materials | Identified exit to Subcaves 1335 | -10/Materials | Learned Storage trap positions 1381 | -10/Materials | Learned Storage emergency access door positions 1408 | -10/Materials | Learned location of Mines (-8) 1474 | -10/Materials | Entered Mines 1497 | -10/Mines | Learned Materials terminal intel 1549 | -10/Mines | Found a Scrap Suit stashed away for nefarious purposes 1559 | -10/Mines | Found Scrap Suit 1624 | -10/Mines | Met a Derelict who couldn't figure out how to use a Trap Extractor 2003 | -10/Mines | Discovered new exit (range 7) 2053 | -10/Mines | Learned location of Storage (-7) 2343 | -10/Mines | System corruption reached 10% 2345 | -10/Mines | Entered Materials 2345 | -9/Materials | Accompanied by 2 allies 2345 | -9/Materials | Evolved 2 slots: Propulsion x1, Utility x1 2346 | -9/Materials | Loaded intel: 11 terminal locations 2350 | -9/Materials | Led the pair of lost Derelicts to an unsafe place 2683 | -9/Materials | Discovered new exit (range 16) 3144 | -9/Materials | Discovered new exit (range 16) 3587 | -9/Materials | Discovered new exit (range 7) 3732 | -9/Materials | Destroyed 7 combat bots 4069 | -9/Materials | Learned location of 1 exit from Recycling 4149 | -9/Materials | Learned Storage stockpile data 4279 | -9/Materials | Learned Materials terminal intel 4328 | -9/Materials | Learned 2 Storage zone layouts 4365 | -9/Materials | Learned 2 Storage zone layouts 4392 | -9/Materials | Learned Recycling recycling unit intel 4474 | -9/Materials | Identified exit to Mines 4474 | -9/Materials | Learned location of 1 exit from Materials 4529 | -9/Materials | Learned 2 Storage zone layouts 4623 | -9/Materials | Identified exit to Materials 4683 | -9/Materials | Repaired Seismic Detector 4716 | -9/Materials | Entered Mines 4779 | -9/Mines | A weapon hastily lodged in a ceiling crevice suddenly fell to the ground 4838 | -9/Mines | Found a damaged Exp. Sensor Array with a note attached 4843 | -9/Mines | Found Prototype Device 5121 | -9/Mines | Learned Materials security intel 5175 | -9/Mines | Identified Exp. Sensor Array 5353 | -9/Mines | Discovered exit to Materials (range 11) 5362 | -9/Mines | Received a Rocket Launcher from a helpful Derelict 5562 | -9/Mines | Discovered exit to Materials (range 3) 5825 | -9/Mines | Deemed a non-threat by the Exiles lab entrance 5825 | -9/Mines | Discovered new exit (range 5) 5835 | -9/Mines | Entered Exiles 5873 | -9/Exiles | Discovered new exit (range 15) 5899 | -9/Exiles | Met 8R-AWN 5938 | -9/Exiles | Met EX-HEX 6047 | -9/Exiles | Met EX-DEC 6088 | -9/Exiles | Learned location of Zion (-7) 6130 | -9/Exiles | Met EX-BIN 6164 | -9/Exiles | Aligned with FarCom system 6166 | -9/Exiles | Given EX-Vault access code 6222 | -9/Exiles | Opened EX-Vault 6242 | -9/Exiles | Found Army-in-a-Box 6248 | -9/Exiles | Found Gui. Plasma Cannon 6310 | -9/Exiles | Warned to stay clear of 0b10 Research branches 6326 | -9/Exiles | Exiles lab attacked by MAIN.C 6475 | -9/Exiles | Discovered new exit (range 10) 6495 | -9/Exiles | Stole two prototypes: Army-in-a-Box, Gui. Plasma Cannon 6495 | -9/Exiles | Entered Mines 6502 | -8/Mines | Discovered exit to Materials (range 13) 6556 | -8/Mines | Entered Materials 6556 | -8/Materials | Evolved 2 slots: Utility x2 6557 | -8/Materials | Identified exit to Factory 6560 | -8/Materials | Loaded intel: 11 terminal locations 7672 | -8/Materials | Central database locked down 7755 | -8/Materials | Identified exit to Garrison 7755 | -8/Materials | Entered Garrison 7801 | -8/Garrison | Triggered checkpoint 7855 | -8/Garrison | Garrison Relay disabled 7960 | -8/Garrison | Triggered checkpoint 8075 | -8/Garrison | Discovered exit to Factory (range 10) 8089 | -8/Garrison | Learned Factory security intel 8133 | -8/Garrison | Build established: Scavenger-Mutant 8179 | -8/Garrison | Triggered checkpoint 8459 | -8/Garrison | Triggered checkpoint 8691 | -8/Garrison | Triggered checkpoint 8831 | -8/Garrison | Discovered exit to Factory (range 10) 8903 | -8/Garrison | Discovered exit to Factory (range 24) 8903 | -8/Garrison | Discovered exit to Factory (range 62) 8903 | -8/Garrison | Discovered exit to Factory (range 53) 9031 | -8/Garrison | Triggered checkpoint 9053 | -8/Garrison | Installed Relay Interface Framework 9085 | -8/Garrison | Garrison Relay disabled 9601 | -8/Garrison | Entered Factory 9601 | -7/Factory | Evolved 2 slots: Utility x2 9602 | -7/Factory | Identified exit to Storage 9603 | -7/Factory | FarCom data flow suspended 9791 | -7/Factory | Garrison activated, responded to threat 9866 | -7/Factory | Destroyed 7 combat bots 9905 | -7/Factory | Entered Storage 9906 | -7/Storage | Identified exit to Factory 9907 | -7/Storage | Loaded intel: 22 trap records 10862 | -7/Storage | Met a pair of Derelict thieves 11166 | -7/Storage | Found Prototype Launcher 11166 | -7/Storage | Identified Rocket Array 11170 | -7/Storage | Found Rocket Array 11173 | -7/Storage | Found Rocket Array 11652 | -7/Storage | Used back door to open Recycling access 11652 | -7/Storage | Discovered new exit (range 5) 11665 | -7/Storage | Entered Recycling 11666 | -7/Recycling | Identified exit to Factory 11666 | -7/Recycling | Identified exit to Scraptown 11667 | -7/Recycling | Loaded intel: 7 recycling unit locations 12344 | -7/Recycling | Build established: Commander-Mutant 13882 | -7/Recycling | Scanned before Scraplab entrance 13912 | -7/Recycling | Entered Scraplab 13941 | -7/Recycling | Entered Scraptown 13941 | -7/Scraptown | Accompanied by 4 allies 14400 | -7/Scraptown | Visited Shadow of the Wyrm 14498 | -7/Scraptown | Visited Cyclists 14519 | -7/Scraptown | Visited Comm Corps 14936 | -7/Scraptown | Heard Great Nut preacher, LISTEN AND RECITE! 14944 | -7/Scraptown | Visited CPS Storage 15250 | -7/Scraptown | Discovered exit to Factory (range 13) 15632 | -7/Scraptown | Attacked by Scraptown defenders 15635 | -7/Scraptown | Allies destroyed Triborg 16219 | -7/Scraptown | Build established: Mutant 18761 | -7/Scraptown | Lost 5 allies 19429 | -7/Scraptown | Visited Analyses Database 19724 | -7/Scraptown | Visited Scrapoid Pod Storage 19802 | -7/Scraptown | Visited Abandonware Association 19837 | -7/Scraptown | Learned abandonware demo "REPAIR.EXE" 19837 | -7/Scraptown | Learned abandonware demo "POISON.EXE" 19916 | -7/Scraptown | Visited Infowarlord's Domain 19935 | -7/Scraptown | Found Exp. Signal Interpreter 19994 | -7/Scraptown | Visited Science Guys 20031 | -7/Scraptown | Found Thermal Lance 20151 | -7/Scraptown | Visited DA-N13 Charitable Foundation 20175 | -7/Scraptown | Found DCF Scrap (30 items) 20228 | -7/Scraptown | Visited Curators Association 20312 | -7/Scraptown | Found Deploy-a-Sentry 20415 | -7/Scraptown | Visited Botcube Research 20918 | -7/Scraptown | Visited LU-1G1's Boring Crew 20957 | -7/Scraptown | Found Prototype Special Weapon 20957 | -7/Scraptown | Identified LU-1G1's Laser Shovel 21216 | -7/Scraptown | Visited Research Penetration Think Tank 21677 | -7/Scraptown | Found Scrapoid Pod 21945 | -7/Scraptown | Scrapoid Pod released 07S05-D (x5) 22217 | -7/Scraptown | Murdered 3 allies 22322 | -7/Scraptown | Found Scrap Suit 23128 | -7/Scraptown | Found Botcube 23162 | -7/Scraptown | Botcube activated 23184 | -7/Scraptown | Botcube completed mutation into legged form, armed with 2 guns. 23297 | -7/Scraptown | Found Scrapoid Pod 23299 | -7/Scraptown | Found Scrapoid Pod 23468 | -7/Scraptown | Scrapoid Pod released 07S10-D (x5) 23662 | -7/Scraptown | Scrapoid Pod released 07S15-D (x5) 23944 | -7/Scraptown | Murdered 3 allies 24031 | -7/Scraptown | Found Scrap Suit 24150 | -7/Scraptown | Build established: Scavenger-Mutant 24331 | -7/Scraptown | Found Botcube 24368 | -7/Scraptown | Botcube activated 24390 | -7/Scraptown | Botcube completed mutation into legged form, armed with 2 guns. 24654 | -7/Scraptown | Found Scrap Suit 24892 | -7/Scraptown | Found Scrap Suit 24895 | -7/Scraptown | Found Scrap Suit 25435 | -7/Scraptown | Found Scrapoid Pod 25443 | -7/Scraptown | Found Scrapoid Pod 25673 | -7/Scraptown | Scrapoid Pod released 07S20-D (x5) 25852 | -7/Scraptown | Murdered 4 allies 25943 | -7/Scraptown | Found Lrg. Botcube 26245 | -7/Scraptown | Lrg. Botcube activated 26281 | -7/Scraptown | Lrg. Botcube completed mutation into legged form, armed with 4 guns. 26919 | -7/Scraptown | Murdered *Nuevo Terminus 26919 | -7/Scraptown | Destroyed *Nuevo Terminus 26978 | -7/Scraptown | Found Lrg. Botcube 27127 | -7/Scraptown | Scrapoid Pod released 07S25-D (x5) 27428 | -7/Scraptown | Murdered 3 allies 27946 | -7/Scraptown | Lrg. Botcube activated 27982 | -7/Scraptown | Lrg. Botcube completed mutation into legged form, armed with 4 guns. 28205 | -7/Scraptown | Found Scrap Suit 28763 | -7/Scraptown | Tech Extrapolator generated special schematic: Machine Rigger 29473 | -7/Scraptown | Found Lrg. Botcube 29514 | -7/Scraptown | Lrg. Botcube activated 29546 | -7/Scraptown | Lrg. Botcube completed mutation into wheeled form, armed with 4 melee weapons. 29836 | -7/Scraptown | Found Scrap Suit 30181 | -7/Scraptown | Found Botcube 30434 | -7/Scraptown | Botcube activated 30456 | -7/Scraptown | Botcube completed mutation into legged form, armed with 2 guns. 30716 | -7/Scraptown | Build established: Commander-Mutant 31493 | -7/Scraptown | Found Tri-treads 31852 | -7/Scraptown | Discovered exit to Factory (range 3) 32010 | -7/Scraptown | Entered Factory 32010 | -5/Factory | Accompanied by 6 allies 32010 | -5/Factory | Evolved 4 slots: Power x1, Propulsion x2, Utility x1 32081 | -5/Factory | Tech Extrapolator generated special schematic: Deep Structural Scanner 32146 | -5/Factory | Tech Extrapolator generated special schematic: Energy Deflector 32246 | -5/Factory | Spotted B-75 Beast 32279 | -5/Factory | Garrison activated, responded to threat 32287 | -5/Factory | Allies destroyed B-75 Beast 32660 | -5/Factory | Discovered new exit (range 4) 32910 | -5/Factory | First assault squad dispatched 32989 | -5/Factory | Identified exit to Garrison 33040 | -5/Factory | Entered Garrison 33040 | -5/Garrison | Accompanied by 5 allies 33096 | -5/Garrison | Triggered checkpoint 33124 | -5/Garrison | Build established: Scavenger-Mutant 33127 | -5/Garrison | Garrison Relay disabled 33282 | -5/Garrison | Found Relay Coupler [Proto] 33286 | -5/Garrison | Found Relay Coupler [Proto] 33289 | -5/Garrison | Found Relay Coupler [Proto] 33293 | -5/Garrison | Found Relay Coupler [Proto] 33486 | -5/Garrison | Triggered checkpoint 33504 | -5/Garrison | Triggered checkpoint 33513 | -5/Garrison | Found Botcube 33603 | -5/Garrison | Heavy support dispatched to Factory 33606 | -5/Garrison | Triggered checkpoint 33609 | -5/Garrison | Build established: Bothacker-Mutant 33618 | -5/Garrison | DAS Turret deployed 33625 | -5/Garrison | Found Botcube 33660 | -5/Garrison | Discovered new exit (range 9) 33707 | -5/Garrison | Expanded RIF knowledge: Signal Jamming 33879 | -5/Garrison | Garrison Relay disabled 33964 | -5/Garrison | Discovered new exit (range 14) 34010 | -5/Garrison | H-XX Assembler disabled 34333 | -5/Garrison | Discovered new exit (range 8) 34355 | -5/Garrison | Entered Factory 34355 | -4/Factory | Accompanied by 5 allies 34355 | -4/Factory | Evolved 2 slots: Propulsion x1, Utility x1 34405 | -4/Factory | Sucked down chute 34405 | -4/Factory | Entered Waste 34406 | -4/Waste | Joined by Warlord forces that had cleared the area 34485 | -4/Waste | 5 allies followed down the chute 34735 | -4/Waste | Discovered new exit (range 13) 35657 | -4/Waste | Entered Factory 35657 | -4/Factory | Accompanied by 23 allies 35707 | -4/Factory | Spotted B-86 Titan 35717 | -4/Factory | Allies destroyed B-86 Titan 35770 | -4/Factory | Garrison activated, responded to threat 35784 | -4/Factory | Found Lrg. Botcube 35840 | -4/Factory | Identified exit to Garrison 35886 | -4/Factory | Entered Garrison 35886 | -4/Garrison | Accompanied by 3 allies 35941 | -4/Garrison | Lost 21 allies 35980 | -4/Garrison | Triggered checkpoint 35993 | -4/Garrison | Spotted Striker 35993 | -4/Garrison | Spotted Striker 36010 | -4/Garrison | Destroyed Striker 36015 | -4/Garrison | Allies destroyed Striker 36179 | -4/Garrison | Spotted B-86 Titan 36200 | -4/Garrison | Allies destroyed B-86 Titan 36215 | -4/Garrison | Triggered checkpoint 36234 | -4/Garrison | Triggered checkpoint 36312 | -4/Garrison | Discovered new exit (range 10) 36376 | -4/Garrison | Triggered checkpoint 36417 | -4/Garrison | Garrison Relay disabled 36556 | -4/Garrison | Murdered *Nuevo Terminus 36556 | -4/Garrison | Destroyed *Nuevo Terminus 36562 | -4/Garrison | Found Lrg. Botcube 36629 | -4/Garrison | Discovered new exit (range 12) 36646 | -4/Garrison | Triggered checkpoint 36686 | -4/Garrison | Build established: Scavenger-Mutant 36718 | -4/Garrison | Garrison Relay disabled 36745 | -4/Garrison | Expanded RIF knowledge: Alert ID Control 36782 | -4/Garrison | Garrison Relay disabled 37068 | -4/Garrison | Build established: Bothacker-Mutant 37182 | -4/Garrison | Triggered checkpoint 37216 | -4/Garrison | Triggered checkpoint 37304 | -4/Garrison | Rescued a captive Derelict 37327 | -4/Garrison | Garrison Relay disabled 37408 | -4/Garrison | Discovered new exit (range 11) 37427 | -4/Garrison | Entered Factory 37427 | -4/Factory | Accompanied by 1 ally 37677 | -4/Factory | First assault squad dispatched 37812 | -4/Factory | Discovered new exit (range 6) 38150 | -4/Factory | Found Quantum Capacitor 38570 | -4/Factory | Destroyed 9 combat bots 38611 | -4/Factory | Lost 9 parts (2p4n2u1w) 38686 | -4/Factory | Core integrity fell below 50% 38710 | -4/Factory | Lost 6 parts (4n2u) 38821 | -4/Factory | Discovered new exit (range 15) 39015 | -4/Factory | Core integrity fell below 20% 39024 | -4/Factory | Destroyed by G-67 Veteran with Plasma Rifle Last Messages --------------- 38990_ G-67 Veteran unfolds itself. 38990_ E-15 Imp unfolds itself. 38990_ Melee Analysis Suite destroyed. 38996_ Plasma Lance destroyed. 38996_ Acquired 76 matter. 38997_ K-01 Serf collects debris. 38999_ A-15 Conveyor suffers critical hit (Burn). 38999_ E-15 Imp destroyed. 39003_ Relay Coupler [NC] blown off. 39003_ Adv. Targeting Computer blown off. 39003_ E-15 Imp destroyed. 39008_ K-01 Serf collects debris. 39014_ System corrupted: Component data lost. 39014_ C-30 ARC bursts open, deploying its payload. 39014_ G-73 Enforcer unfolds itself. 39014_ G-67 Veteran unfolds itself. 39014_ I-47 Archangel unfolds itself. 39016_ Triggered Alarm Trap. 39016_ RIF jams signal. 39016_ K-01 Serf collects debris. Map ----- +----------------------------------------------------+ | ?????????????????????????????????????????????????? | | ?????????????????????????????????????????????????? | | ?????????????????????????????????????????????????? | | ?????????????????????????????????????????????????? | | ?????????????????????????????????????????????????? | | ?????????????????????????????????????????????????? | | ?????????????????????????????????????????????????? | | ?????????????????????????????????????????????????? | | ?????????????????????????????????????????????????? | | ?????????????????????????????????????????????????? | | ?????????????????????????????????????????????????? | | ?????????????????????????????????????????????????? | | ?????????????????????????????????????????????????? | | ?????????????????????????????????????????????????? | | ?????????????????????????????????????????????????? | | ?????????????????????????????????????????????????? | | ?????????????????????????????????????????????????? | | ?????????????????????????????????????????????????? | | ####??????"??????????????????????????????????????? | | #??????? ????????????????????????????????????? | | ##########/######+#############+####??????????? | | R k ?????????? | | i ?????????? | | gg g ????????? | | g ????????? | | @ k????????? | | ##########+######+#############???????????????? | | #???????! #?? ??????????????????????????? | | ####????? # ????????????????????????? | | ??????? # * #???????????????????????? | | ?????# """ # #???????????????????????? | | ????# """ """ # #???????????????????????? | | ????# """ Y" #* #???????????????????????? | | ????? """ # #???????????????????????? | | ????? # * #???????????????????????? | | ????###################???????????????????????? | | ? ??????????????????????????????????????????????? | | ? ?????????????????????????????????????????????? | | ?? ?????????????????????????????????????????????? | | ?????????????????????????????????????????????????? | | ?????????????????????????????????????????????????? | | ?????????????????????????????????????????????????? | | ????????????????????H????????????????????????????? | | ?????????????????????????????????????????????????? | | ?????????????????????????????????????????????????? | | ?????????????????????????????????????????????????? | | ?????????????????????????????????????????????????? | | | | | | | +----------------------------------------------------+ Best States ------------- Heat Dissipation 105 Coolant Potential 100 Energy Generation 41 Energy Capacity 750 Matter Stores 300 Matter Capacity 600 Sight Range 16 Terrain Scan Density 10 Armor Coverage 675 Resistance: KI 20 Resistance: TH 30 Weapon Cycling 25 Evasion (%) 67 Targeting Accuracy 8 Melee Accuracy 5 Armor Integrity Analysis 30 Recoil Reduction 6 Offensive Hacking 10 Relay Coupler Types 2 Relay Coupler Value 36 Trap Extractor Capacity 6 Item Schematics ----------------- Spk. Treads | -7/Scraptown | Extrapolated Mak. Leg | -7/Scraptown | Extrapolated 0b10 Decoder Chip [Skirmisher] | -7/Scraptown | Extrapolated Machine Rigger | -7/Scraptown | Extrapolated Deep Structural Scanner | -5/Factory | Extrapolated Energy Deflector | -5/Factory | Extrapolated Spk. Medium Treads | -5/Factory | Extrapolated Mak. Power Source | -5/Factory | Extrapolated Mak. Coolant Network | -5/Factory | Extrapolated Tactical Coordination Suite | -5/Factory | Extrapolated Mak. Transmission Jammer | -5/Factory | Extrapolated Mak. Medium Armor Plating | -5/Factory | Extrapolated Mak. Thermal Plating | -5/Factory | Extrapolated Mak. Ablative Armor | -5/Factory | Extrapolated Hvy. Beamcaster | -5/Factory | Extrapolated 0b10 Decoder Chip [Looter] | -5/Factory | Extrapolated Plasma Flamer | -5/Factory | Extrapolated Multitool | -5/Garrison | Extrapolated Mak. Flight Unit | -4/Waste | Extrapolated Spk. Heavy Treads | -4/Waste | Extrapolated Mak. Sensor Array | -4/Factory | Extrapolated Bore Cannon | -4/Factory | Extrapolated Mak. Laser | -4/Garrison | Extrapolated Mak. Hacking Suite | -4/Factory | Extrapolated Mak. System Shield | -4/Factory | Extrapolated Mak. Targeting Computer | -4/Factory | Extrapolated Robot Schematics ------------------ None Fabricated ------------ Nothing Repaired ---------- Seismic Detector | 30% | -9/Materials Alien Tech Used ----------------- None Achievements -------------- None Challenges ------------ None Game ------ Seed MetafieldHardcellFlail Manual? 0 Play Time 04:09:45 Cumulative 662.9 hours Start 2024.11.05 @ 18:56:04 End 2024.11.06 @ 22:34:50 Sessions 3 Manual Loads 0 Difficulty Rogue Special Mode None Game No. 706 Rogue 619 Adventurer 87 Explorer 0 Win Type - Total 40 Types 8/0/26/1/1/1/3/0/0 Lore% 96 Gallery% 93 Achievement% 80 Wizard Run 0 Options --------- Layout 0 ASCII 0 Keyboard 1 Movement Numpad Keybinds 0 Fullscreen 2 Font 18/SmallcapsGlow Map View 76x50 Zoom Use 0% Tactical HUD 1 Map Filters NONE Filters NONE Steam 1 RUN: e9632581-7941-42b8-8849-decdc157999b